fUST/lending_fUST_20250610
["ID","MTS","AMOUNT","RATE_DAILY","PERIOD"]
[365229021,1749556243765,-151.0,0.000238,7]
[365229022,1749556243774,-151.0,0.000238,7]
[365229023,1749556243783,-151.0,0.000238,7]
[365229024,1749556243793,-151.0,0.000238,7]
[365229025,1749556243803,-151.0,0.000238,7]
[365229026,1749556243919,-250.896548,0.000238,7]
[365229027,1749556243932,-841.19184178,0.000238,3]
[365229066,1749557202398,-226.35468164,0.00019692,2]
[365229078,1749557313893,2628.90774443,0.00016,2]
[365229080,1749557333215,-226.35468164,0.00019691,2]
[365229087,1749557401208,573.58,0.000228,120]
[365229160,1749557432702,-549.31072602,0.00019691,2]
[365229186,1749557438226,-1888.11417298,0.00019691,2]
[365229187,1749557438236,-1838.26529297,0.00019692,2]
[365229188,1749557438286,-664.60997044,0.00019692,2]
[365229226,1749557443369,-165.08265539,0.00019592,2]
[365229227,1749557443380,-1734.96882188,0.00019692,2]
[365229228,1749557443392,-361.17928475,0.00019692,2]
[365229229,1749557443405,-400.97662996,0.00019692,2]
[365229230,1749557443416,-165.220383,0.00019931,2]
[365229231,1749557443427,-18.93733836,0.00020053,2]
[365229288,1749557446607,-141.06266164,0.00020053,2]
[365229290,1749557446616,-2239.31289394,0.00020656,2]
[365229559,1749557486868,521.499907,0.00013699,2]
[365229561,1749557493886,154.66013962,6.8e-07,2]
[365229564,1749557599693,4040.53021,0.00024781,60]
[365229569,1749557735151,-226.35468164,0.00019692,2]
[365229572,1749557855190,-226.35468164,0.00019692,2]
[365229574,1749557891728,-226.35468164,0.00019692,2]
[365229576,1749557939268,-4547.29063672,0.00019692,2]
[365229577,1749557939289,-4970.4960069,0.00019862,2]
[365229578,1749557939311,-1178.56,0.00019932,2]
[365229579,1749557939332,-521.499907,0.00020187,2]
[365229580,1749557939352,-2132.746786,0.00020242,3]
[365229581,1749557939373,-500.0,0.000203,2]
[365229582,1749557939393,-4749.40666338,0.00020656,2]
[365229593,1749558259596,1830.43148,0.00024807,60]
[365229594,1749558265682,1208.6064131,0.00024807,60]
[365229610,1749558521861,151.0,0.0002,120]
[365229611,1749558536277,10000.0,0.00024807,60]
[365229612,1749558545225,198.0,0.00024658,120]
[365229614,1749558571799,200.0,0.00024807,120]
[365229624,1749558625866,226.35468164,0.00013699,2]
[365229625,1749558625893,270.99604336,0.00013699,2]
[365229662,1749558632546,-200.0,0.0001959,2]
[365229665,1749558632556,-300.0,0.00019592,2]
[365229667,1749558632566,-300.0,0.00019592,2]
[365229669,1749558632575,-300.0,0.00019592,2]
[365229671,1749558632585,-1200.0,0.00019592,2]
[365229673,1749558632595,-24900.0,0.00019593,2]
[365229675,1749558632605,-10000.0,0.00019625,2]
[365229677,1749558632615,-5000.0,0.00019692,2]
[365229679,1749558632624,-293.991393,0.00019846,2]
[365229681,1749558632634,-505.3690862,0.0001985,2]
[365229683,1749558632645,-172.753887,0.00019864,2]
[365229685,1749558632654,-1716.18,0.00019895,2]
[365229687,1749558632663,-200.0,0.0002,2]
[365229689,1749558632673,-497.350725,0.00020187,2]
[365229691,1749558632683,-300.0,0.00020241,2]
[365229693,1749558632693,-1946.29886,0.00020242,3]
[365229695,1749558632703,-500.0,0.000203,2]
[365229697,1749558632713,-315.41863091,0.00020656,2]
[365229699,1749558632722,-175.467875,0.000207,20]
[365229701,1749558632732,-3432.36,0.00020843,2]
[365229704,1749558632742,-1726.53400952,0.000209,4]
[365229706,1749558632751,-3644.21950387,0.00020995,2]
[365229708,1749558632760,-500.0,0.00021,2]
[365229710,1749558632770,-500.0,0.00021,2]
[365229712,1749558632779,-1726.53400946,0.00021038,4]
[365229714,1749558632789,-190565.61494093,0.00021056,2]
[365229716,1749558632802,-365309.84677907,0.00021056,2]
[365229718,1749558632811,-315.18454239,0.00021057,2]
[365229720,1749558632821,-834.9046531,0.00021057,2]
[365229722,1749558632830,-263.099,0.00021057,2]
[365229724,1749558632840,-152.72,0.00021085,3]
[365229726,1749558632849,-458.16,0.00021085,3]
[365229728,1749558632859,-155.0,0.00021094,2]
[365229730,1749558632869,-500.0,0.00021094,2]
[365229732,1749558632883,-500.0,0.00021094,2]
[365229734,1749558632893,-500.0,0.00021094,2]
[365229736,1749558632903,-500.0,0.00021094,2]
[365229738,1749558632912,-500.0,0.00021094,2]
[365229740,1749558632922,-500.0,0.00021094,2]
[365229742,1749558632932,-500.0,0.00021094,2]
[365229744,1749558632941,-500.0,0.00021094,2]
[365229746,1749558632951,-500.0,0.00021094,2]
[365229748,1749558632961,-500.0,0.00021094,2]
[365229750,1749558632970,-500.0,0.00021094,2]
[365229752,1749558632980,-500.0,0.00021094,2]
[365229754,1749558632989,-264.60320913,0.00021094,2]
[365229756,1749558632999,-500.0,0.00021094,2]
[365229758,1749558633008,-500.0,0.00021094,2]
[365229760,1749558633019,-500.0,0.00021094,2]
[365229762,1749558633029,-410.0,0.00021095,4]
[365229764,1749558633040,-460.0,0.00021095,4]
[365229766,1749558633052,-460.0,0.00021095,4]
[365229769,1749558633062,-460.0,0.00021095,4]
[365229770,1749558633072,-410.0,0.00021095,4]
[365229772,1749558633082,-460.0,0.00021095,4]
[365229774,1749558633092,-304.25123012,0.00021095,4]
[365229776,1749558633103,-460.0,0.00021095,4]
[365229778,1749558633113,-460.0,0.00021095,4]
[365229781,1749558633123,-460.0,0.00021095,4]
[365229783,1749558633134,-460.0,0.00021095,4]
[365229784,1749558633144,-356.46583884,0.00021095,4]
[365229787,1749558633154,-440.0,0.00021095,4]
[365229788,1749558633164,-460.0,0.00021095,4]
[365229790,1749558633175,-723.09,0.00021095,4]
[365229793,1749558633185,-460.0,0.00021095,4]
[365229794,1749558633195,-460.0,0.00021095,4]
[365229797,1749558633205,-460.0,0.00021095,4]
[365229799,1749558633215,-460.0,0.00021095,4]
[365229801,1749558633226,-460.0,0.00021095,4]
[365229803,1749558633237,-460.0,0.00021095,4]
[365229805,1749558633247,-460.0,0.00021095,4]
[365229807,1749558633257,-2883.13,0.00021095,4]
[365229809,1749558633269,-460.0,0.00021095,4]
[365229811,1749558633280,-460.0,0.00021095,4]
[365229813,1749558633290,-428.35938056,0.00021095,4]
[365229815,1749558633300,-500.0,0.00021095,4]
[365229817,1749558633310,-460.0,0.00021095,4]
[365229819,1749558633320,-460.0,0.00021095,4]
[365229821,1749558633331,-460.0,0.00021095,4]
[365229823,1749558633342,-460.0,0.00021095,4]
[365229825,1749558633353,-431.7185109,0.00021095,4]
[365229827,1749558633362,-460.0,0.00021095,4]
[365229829,1749558633374,-500.0,0.00021095,4]
[365229831,1749558633384,-460.0,0.00021095,4]
[365229833,1749558633395,-460.0,0.00021095,4]
[365229835,1749558633405,-470.19,0.00021095,4]
[365229837,1749558633416,-599.28825946,0.00021095,4]
[365229839,1749558633426,-151.0,0.00021095,4]
[365229841,1749558633436,-460.0,0.00021095,4]
[365229843,1749558633446,-460.0,0.00021095,4]
[365229845,1749558633456,-168.19292758,0.00021095,4]
[365229847,1749558633466,-460.0,0.00021095,4]
[365229849,1749558633477,-500.0,0.00021095,4]
[365229851,1749558633487,-460.0,0.00021095,4]
[365229853,1749558633499,-402.44337219,0.00021095,4]
[365229855,1749558633509,-460.0,0.00021095,4]
[365229857,1749558633520,-460.0,0.00021095,4]
[365229859,1749558633530,-420.0,0.00021095,4]
[365229861,1749558633540,-320.10235032,0.00021095,4]
[365229863,1749558633551,-310.92320749,0.00021095,4]
[365229865,1749558633562,-254.64332308,0.00021095,4]
[365229867,1749558633573,-460.0,0.00021095,4]
[365229869,1749558633582,-400.0,0.00021095,4]
[365229871,1749558633592,-460.0,0.00021095,4]
[365229873,1749558633602,-460.0,0.00021095,4]
[365229875,1749558633611,-460.0,0.00021095,4]
[365229877,1749558633621,-460.0,0.00021095,4]
[365229879,1749558633630,-402.89541972,0.00021095,4]
[365229881,1749558633640,-460.0,0.00021095,4]
[365229883,1749558633650,-460.0,0.00021095,4]
[365229885,1749558633660,-460.0,0.00021095,4]
[365229887,1749558633670,-460.0,0.00021095,4]
[365229889,1749558633679,-460.0,0.00021095,4]
[365229891,1749558633689,-460.0,0.00021095,4]
[365229893,1749558633699,-406.27378245,0.00021095,4]
[365229895,1749558633709,-460.0,0.00021095,4]
[365229897,1749558633718,-460.0,0.00021095,4]
[365229899,1749558633728,-460.0,0.00021095,4]
[365229912,1749558633848,-460.0,0.00021095,4]
[365229914,1749558633858,-460.0,0.00021095,4]
[365229916,1749558633868,-250.0,0.00021095,4]
[365229918,1749558633879,-460.0,0.00021095,4]
[365229920,1749558633891,-460.0,0.00021095,4]
[365229922,1749558633900,-402.63104724,0.00021095,4]
[365229924,1749558633910,-460.0,0.00021095,4]
[365229926,1749558633921,-460.0,0.00021095,4]
[365229928,1749558633930,-460.0,0.00021095,4]
[365229930,1749558633940,-460.0,0.00021095,4]
[365229932,1749558633949,-460.0,0.00021095,4]
[365229934,1749558633959,-518.01162933,0.00021095,4]
[365229936,1749558633969,-460.0,0.00021095,4]
[365229938,1749558633979,-460.0,0.00021095,4]
[365229940,1749558633989,-460.0,0.00021095,4]
[365229942,1749558633998,-1271.1,0.00021095,4]
[365229944,1749558634008,-460.0,0.00021095,4]
[365229946,1749558634020,-415.49954515,0.00021095,4]
[365229948,1749558634030,-460.0,0.00021095,4]
[365229950,1749558634040,-460.0,0.00021095,4]
[365229952,1749558634050,-311.72960514,0.00021095,4]
[365229954,1749558634063,-460.0,0.00021095,4]
[365229956,1749558634074,-460.0,0.00021095,4]
[365229958,1749558634084,-423.16483629,0.00021095,4]
[365229960,1749558634095,-402.86049996,0.00021095,4]
[365229962,1749558634105,-390.0,0.00021095,4]
[365229964,1749558634115,-460.0,0.00021095,4]
[365229966,1749558634126,-400.0,0.00021095,4]
[365229968,1749558634137,-400.0,0.00021095,4]
[365229970,1749558634147,-270.0,0.00021095,4]
[365229972,1749558634158,-460.0,0.00021095,4]
[365229975,1749558634169,-504.69,0.00021095,4]
[365229977,1749558634179,-472.80336111,0.00021095,4]
[365229978,1749558634188,-460.0,0.00021095,4]
[365229981,1749558634199,-460.0,0.00021095,4]
[365229983,1749558634209,-460.0,0.00021095,4]
[365229985,1749558634219,-450.0,0.00021095,4]
[365229986,1749558634229,-460.0,0.00021095,4]
[365229989,1749558634238,-460.0,0.00021095,4]
[365229990,1749558634248,-460.0,0.00021095,4]
[365229993,1749558634258,-304.567395,0.00021095,4]
[365229994,1749558634268,-460.0,0.00021095,4]
[365229996,1749558634278,-460.0,0.00021095,4]
[365229998,1749558634288,-460.0,0.00021095,4]
[365230000,1749558634298,-460.0,0.00021095,4]
[365230002,1749558634307,-460.0,0.00021095,4]
[365230004,1749558634317,-460.0,0.00021095,4]
[365230006,1749558634326,-460.0,0.00021095,4]
[365230008,1749558634335,-430.0,0.00021095,4]
[365230010,1749558634344,-500.0,0.00021095,4]
[365230012,1749558634354,-597.9311044,0.00021095,4]
[365230014,1749558634364,-460.0,0.00021095,4]
[365230016,1749558634374,-460.0,0.00021095,4]
[365230018,1749558634384,-420.0,0.00021095,4]
[365230020,1749558634394,-460.0,0.00021095,4]
[365230022,1749558634405,-460.0,0.00021095,4]
[365230024,1749558634415,-415.22696666,0.00021095,4]
[365230026,1749558634424,-460.0,0.00021095,4]
[365230028,1749558634433,-460.0,0.00021095,4]
[365230030,1749558634443,-460.0,0.00021095,4]
[365230032,1749558634452,-156.70165054,0.00021095,4]
[365230034,1749558634462,-460.0,0.00021095,4]
[365230036,1749558634471,-460.0,0.00021095,4]
[365230038,1749558634481,-460.0,0.00021095,4]
[365230040,1749558634490,-420.0,0.00021095,4]
[365230042,1749558634499,-410.0,0.00021095,4]
[365230044,1749558634508,-1151.52,0.00021095,4]
[365230046,1749558634518,-460.0,0.00021095,4]
[365230048,1749558634527,-460.0,0.00021095,4]
[365230050,1749558634537,-460.0,0.00021095,4]
[365230052,1749558634546,-460.0,0.00021095,4]
[365230054,1749558634556,-460.0,0.00021095,4]
[365230056,1749558634565,-460.0,0.00021095,4]
[365230058,1749558634574,-420.0,0.00021095,4]
[365230060,1749558634583,-460.0,0.00021095,4]
[365230062,1749558634592,-460.0,0.00021095,4]
[365230064,1749558634601,-460.0,0.00021095,4]
[365230066,1749558634610,-460.0,0.00021095,4]
[365230068,1749558634619,-460.0,0.00021095,4]
[365230070,1749558634628,-632.11,0.00021095,4]
[365230072,1749558634638,-460.0,0.00021095,4]
[365230074,1749558634647,-420.0,0.00021095,4]
[365230076,1749558634657,-441.82416574,0.00021095,4]
[365230078,1749558634666,-460.0,0.00021095,4]
[365230080,1749558634675,-903.98,0.00021095,4]
[365230082,1749558634684,-460.0,0.00021095,4]
[365230084,1749558634693,-420.0,0.00021095,4]
[365230086,1749558634703,-460.0,0.00021095,4]
[365230088,1749558634712,-460.0,0.00021095,4]
[365230090,1749558634721,-460.0,0.00021095,4]
[365230092,1749558634730,-460.0,0.00021095,4]
[365230094,1749558634740,-270.0,0.00021095,4]
[365230096,1749558634749,-430.0,0.00021095,4]
[365230098,1749558634758,-430.0,0.00021095,4]
[365230100,1749558634768,-460.0,0.00021095,4]
[365230102,1749558634777,-460.0,0.00021095,4]
[365230104,1749558634786,-460.0,0.00021095,4]
[365230106,1749558634795,-460.0,0.00021095,4]
[365230108,1749558634804,-2820.8,0.00021095,4]
[365230110,1749558634813,-460.0,0.00021095,4]
[365230112,1749558634824,-350.0,0.00021095,2]
[365230114,1749558634833,-1394.38,0.00021095,4]
[365230116,1749558634843,-411.67450072,0.00021095,4]
[365230118,1749558634852,-460.0,0.00021095,4]
[365230120,1749558634861,-460.0,0.00021095,4]
[365230122,1749558634872,-460.0,0.00021095,4]
[365230124,1749558634884,-460.0,0.00021095,4]
[365230126,1749558634893,-460.0,0.00021095,4]
[365230128,1749558634903,-400.0,0.00021095,4]
[365230130,1749558634912,-460.0,0.00021095,4]
[365230132,1749558634922,-460.0,0.00021095,4]
[365230134,1749558634931,-151.0,0.00021095,4]
[365230136,1749558634941,-500.0,0.00021095,4]
[365230138,1749558634950,-151.0,0.00021095,4]
[365230140,1749558634960,-460.0,0.00021095,4]
[365230142,1749558634970,-205.28241924,0.00021095,4]
[365230144,1749558634979,-154.18362132,0.00021095,4]
[365230146,1749558634988,-460.0,0.00021095,4]
[365230148,1749558634997,-151.0,0.00021095,4]
[365230150,1749558635006,-151.0,0.00021095,2]
[365230152,1749558635015,-460.0,0.00021095,4]
[365230154,1749558635024,-468.55517041,0.00021095,4]
[365230156,1749558635034,-992.29,0.00021095,4]
[365230157,1749558635043,-460.0,0.00021095,4]
[365230159,1749558635052,-156.530574,0.00021095,2]
[365230161,1749558635061,-460.0,0.00021095,4]
[365230163,1749558635070,-460.0,0.00021095,4]
[365230165,1749558635079,-460.0,0.00021095,4]
[365230167,1749558635088,-460.0,0.00021095,4]
[365230169,1749558635097,-460.0,0.00021095,4]
[365230171,1749558635106,-3345.9,0.00021095,4]
[365230173,1749558635115,-2608.83,0.00021095,4]
[365230175,1749558635125,-151.0,0.00021095,2]
[365230177,1749558635134,-508.89810275,0.00021095,4]
[365230179,1749558635143,-151.0,0.00021095,2]
[365230181,1749558635152,-420.89276745,0.00021095,4]
[365230183,1749558635161,-3150.63,0.00021095,4]
[365230185,1749558635170,-405.59752518,0.00021095,4]
[365230187,1749558635180,-460.0,0.00021095,4]
[365230189,1749558635189,-460.0,0.00021095,4]
[365230191,1749558635199,-461.14,0.00021095,4]
[365230193,1749558635208,-460.0,0.00021095,4]
[365230195,1749558635217,-460.0,0.00021095,4]
[365230197,1749558635227,-1994.97,0.00021095,4]
[365230199,1749558635236,-460.0,0.00021095,4]
[365230200,1749558635245,-277.71179238,0.00021095,4]
[365230202,1749558635255,-460.0,0.00021095,4]
[365230204,1749558635264,-184.40828061,0.00021095,4]
[365230206,1749558635273,-460.0,0.00021095,4]
[365230208,1749558635283,-460.0,0.00021095,4]
[365230210,1749558635292,-460.0,0.00021095,4]
[365230212,1749558635301,-460.0,0.00021095,4]
[365230214,1749558635311,-420.0,0.00021095,4]
[365230216,1749558635320,-1966.91,0.00021095,4]
[365230218,1749558635330,-460.0,0.00021095,4]
[365230220,1749558635339,-460.0,0.00021095,4]
[365230222,1749558635348,-586.73599795,0.00021095,4]
[365230224,1749558635358,-470.39551672,0.00021095,4]
[365230225,1749558635367,-370.0,0.00021095,4]
[365230226,1749558635377,-370.0,0.00021095,4]
[365230227,1749558635385,-266.03177238,0.00021095,4]
[365230228,1749558635394,-436.7071302,0.00021095,4]
[365230229,1749558635404,-2759.7,0.00021095,4]
[365230230,1749558635413,-460.0,0.00021095,4]
[365230231,1749558635422,-151.0,0.00021095,2]
[365230232,1749558635431,-471.21767494,0.00021095,4]
[365230233,1749558635440,-151.0,0.00021095,2]
[365230234,1749558635449,-440.0,0.00021095,4]
[365230235,1749558635458,-430.0,0.00021095,4]
[365230236,1749558635467,-460.0,0.00021095,4]
[365230237,1749558635476,-460.0,0.00021095,4]
[365230238,1749558635485,-460.0,0.00021095,4]
[365230239,1749558635494,-460.0,0.00021095,4]
[365230240,1749558635503,-460.0,0.00021095,4]
[365230241,1749558635512,-460.0,0.00021095,4]
[365230242,1749558635522,-460.0,0.00021095,4]
[365230243,1749558635531,-500.0,0.00021095,4]
[365230245,1749558635540,-500.0,0.00021122,4]
[365230246,1749558635550,-151.0,0.00021122,4]
[365230248,1749558635559,-639.88226043,0.00021122,4]
[365230250,1749558635569,-151.0,0.00021122,4]
[365230252,1749558635579,-151.0,0.00021122,4]
[365230254,1749558635588,-229.6792923,0.0002113,2]
[365230256,1749558635597,-160.0,0.0002113,2]
[365230258,1749558635606,-11858.11761888,0.0002113,2]
[365230260,1749558635616,-424.12530924,0.0002113,2]
[365230262,1749558635626,-160.0,0.0002113,2]
[365230264,1749558635636,-160.0,0.0002113,2]
[365230266,1749558635645,-834.9046531,0.0002113,2]
[365230268,1749558635654,-500.0,0.00021131,2]
[365230270,1749558635664,-617.35720151,0.00021131,2]
[365230272,1749558635673,-213.1263252,0.00021149,2]
[365230274,1749558635682,-500.0,0.0002115,4]
[365230276,1749558635692,-212.48748151,0.0002115,4]
[365230278,1749558635701,-151.0,0.0002115,4]
[365230280,1749558635710,-266.48637829,0.0002115,4]
[365230282,1749558635720,-834.9046531,0.00021151,2]
[365230284,1749558635729,-842.5625,0.00021151,2]
[365230286,1749558635738,-151.0,0.00021152,2]
[365230288,1749558635747,-151.0,0.00021152,2]
[365230290,1749558635756,-255.42,0.00021166,3]
[365230292,1749558635767,-766.26,0.00021166,3]
[365230294,1749558635777,-151.0,0.00021166,2]
[365230296,1749558635786,-151.0,0.00021166,2]
[365230298,1749558635795,-443.36030854,0.00021175,2]
[365230300,1749558635804,-502.03367678,0.00021175,2]
[365230302,1749558635813,-502.56278906,0.00021175,2]
[365230304,1749558635823,-500.0,0.00021175,2]
[365230306,1749558635832,-500.0,0.00021175,2]
[365230308,1749558635841,-502.6359938,0.00021175,2]
[365230310,1749558635850,-1726.53400946,0.00021176,4]
[365230312,1749558635860,-847.418324,0.00021177,2]
[365230314,1749558635871,-847.418324,0.00021177,2]
[365230316,1749558635881,-151.0,0.00021177,2]
[365230318,1749558635892,-151.0,0.00021177,2]
[365230320,1749558635901,-151.0,0.00021177,2]
[365230322,1749558635911,-500.0,0.00021177,4]
[365230324,1749558635921,-223.53770355,0.00021177,4]
[365230326,1749558635930,-159.638082,0.00021197,2]
[365230328,1749558635940,-500.0,0.00021205,4]
[365230330,1749558635950,-495.32221132,0.00021232,4]
[365230332,1749558635961,-151.0,0.00021269,2]
[365230334,1749558635970,-151.0,0.00021269,2]
[365230336,1749558635979,-151.0,0.00021269,2]
[365230338,1749558635990,-450.176961,0.00021269,2]
[365230350,1749558636092,-450.176961,0.00021269,2]
[365230352,1749558636103,-285.667313,0.00021269,2]
[365230354,1749558636113,-1726.53400946,0.00021314,5]
[365230356,1749558636123,-420.0,0.00021342,2]
[365230358,1749558636132,-420.0,0.00021342,2]
[365230360,1749558636142,-398.0,0.00021342,2]
[365230362,1749558636151,-151.0,0.00021368,2]
[365230364,1749558636161,-151.0,0.00021368,2]
[365230366,1749558636170,-460.0,0.00021369,4]
[365230368,1749558636179,-460.0,0.00021369,4]
[365230370,1749558636190,-460.0,0.00021369,4]
[365230372,1749558636199,-460.0,0.00021369,4]
[365230374,1749558636208,-460.0,0.00021369,4]
[365230376,1749558636217,-460.0,0.00021369,4]
[365230378,1749558636227,-723.09,0.00021369,4]
[365230380,1749558636237,-460.0,0.00021369,4]
[365230382,1749558636246,-460.0,0.00021369,4]
[365230384,1749558636255,-460.0,0.00021369,4]
[365230386,1749558636265,-460.0,0.00021369,4]
[365230388,1749558636275,-460.0,0.00021369,4]
[365230390,1749558636285,-468.87,0.00021369,4]
[365230392,1749558636295,-460.0,0.00021369,4]
[365230393,1749558636305,-2883.13,0.00021369,4]
[365230395,1749558636315,-460.0,0.00021369,4]
[365230397,1749558636325,-596.76191148,0.00021369,4]
[365230399,1749558636334,-500.0,0.00021369,4]
[365230401,1749558636344,-380.0,0.00021369,4]
[365230403,1749558636353,-460.0,0.00021369,4]
[365230405,1749558636363,-460.0,0.00021369,4]
[365230407,1749558636372,-460.0,0.00021369,4]
[365230409,1749558636381,-460.0,0.00021369,4]
[365230411,1749558636392,-281.16929286,0.00021369,4]
[365230413,1749558636401,-460.0,0.00021369,4]
[365230415,1749558636411,-470.19,0.00021369,4]
[365230417,1749558636421,-460.0,0.00021369,4]
[365230419,1749558636433,-460.0,0.00021369,4]
[365230421,1749558636442,-460.0,0.00021369,4]
[365230423,1749558636452,-460.0,0.00021369,4]
[365230426,1749558636462,-460.0,0.00021369,4]
[365230428,1749558636472,-460.0,0.00021369,4]
[365230430,1749558636482,-460.0,0.00021369,4]
[365230432,1749558636491,-460.0,0.00021369,4]
[365230434,1749558636501,-460.0,0.00021369,4]
[365230436,1749558636511,-460.0,0.00021369,4]
[365230438,1749558636522,-460.0,0.00021369,4]
[365230440,1749558636531,-393.08,0.00021369,4]
[365230442,1749558636542,-219.99659738,0.00021369,4]
[365230444,1749558636551,-460.0,0.00021369,4]
[365230446,1749558636561,-460.0,0.00021369,4]
[365230448,1749558636571,-460.0,0.00021369,4]
[365230450,1749558636581,-460.0,0.00021369,4]
[365230452,1749558636591,-608.49411158,0.00021369,4]
[365230454,1749558636602,-460.0,0.00021369,4]
[365230456,1749558636612,-460.0,0.00021369,4]
[365230458,1749558636622,-460.0,0.00021369,4]
[365230460,1749558636631,-460.0,0.00021369,4]
[365230462,1749558636640,-460.0,0.00021369,4]
[365230464,1749558636650,-376.63810257,0.00021369,4]
[365230466,1749558636660,-562.92450865,0.00021369,4]
[365230467,1749558636670,-460.0,0.00021369,4]
[365230470,1749558636679,-460.0,0.00021369,4]
[365230472,1749558636689,-460.0,0.00021369,4]
[365230474,1749558636698,-460.0,0.00021369,4]
[365230475,1749558636708,-460.0,0.00021369,4]
[365230477,1749558636717,-460.0,0.00021369,4]
[365230479,1749558636727,-460.0,0.00021369,4]
[365230481,1749558636736,-1271.1,0.00021369,4]
[365230483,1749558636745,-460.0,0.00021369,4]
[365230486,1749558636755,-460.0,0.00021369,4]
[365230488,1749558636765,-460.0,0.00021369,4]
[365230490,1749558636777,-460.0,0.00021369,4]
[365230492,1749558636787,-460.0,0.00021369,4]
[365230494,1749558636796,-460.0,0.00021369,4]
[365230496,1749558636806,-392.54800341,0.00021369,4]
[365230498,1749558636815,-460.0,0.00021369,4]
[365230500,1749558636825,-460.0,0.00021369,4]
[365230502,1749558636834,-460.0,0.00021369,4]
[365230504,1749558636844,-460.0,0.00021369,4]
[365230506,1749558636853,-390.0,0.00021369,4]
[365230507,1749558636862,-460.0,0.00021369,4]
[365230510,1749558636874,-460.0,0.00021369,4]
[365230511,1749558636888,-460.0,0.00021369,4]
[365230513,1749558636897,-460.0,0.00021369,4]
[365230515,1749558636907,-420.98377226,0.00021369,4]
[365230517,1749558636916,-460.0,0.00021369,4]
[365230519,1749558636927,-460.0,0.00021369,4]
[365230522,1749558636937,-460.0,0.00021369,4]
[365230524,1749558636946,-333.31956456,0.00021369,4]
[365230526,1749558636958,-460.0,0.00021369,4]
[365230528,1749558636967,-460.0,0.00021369,4]
[365230529,1749558636977,-460.0,0.00021369,4]
[365230531,1749558636986,-460.0,0.00021369,4]
[365230533,1749558636996,-460.0,0.00021369,4]
[365230535,1749558637006,-460.0,0.00021369,4]
[365230537,1749558637016,-460.0,0.00021369,4]
[365230539,1749558637026,-460.0,0.00021369,4]
[365230541,1749558637035,-460.0,0.00021369,4]
[365230543,1749558637046,-460.0,0.00021369,4]
[365230545,1749558637056,-1151.52,0.00021369,4]
[365230547,1749558637065,-460.0,0.00021369,4]
[365230549,1749558637075,-460.0,0.00021369,4]
[365230551,1749558637085,-460.0,0.00021369,4]
[365230553,1749558637095,-460.0,0.00021369,4]
[365230555,1749558637105,-460.0,0.00021369,4]
[365230557,1749558637115,-460.0,0.00021369,4]
[365230559,1749558637124,-460.0,0.00021369,4]
[365230561,1749558637134,-460.0,0.00021369,4]
[365230563,1749558637144,-460.0,0.00021369,4]
[365230565,1749558637154,-460.0,0.00021369,4]
[365230567,1749558637164,-460.0,0.00021369,4]
[365230569,1749558637175,-632.11,0.00021369,4]
[365230571,1749558637185,-360.0,0.00021369,4]
[365230573,1749558637195,-460.0,0.00021369,4]